Cogmind - Beta 16 @@@ ROGUE MODE // 2025.10.28 @ 10:16:53 Player: Timm35 Result: Destroyed by G-47 Trooper with Particle Gun Performance ------------- Evolutions (2) 1000 Regions Visited (3) 600 Robots Destroyed (30) 150 Value Destroyed (686) 686 Prototype IDs (0) 0 Alien Tech Used (0) 0 Bonus (0) 0 TOTAL SCORE: 2436 Bonus ------- None Cogmind --------- Core Integrity 0/550 Matter 207/300 Energy 27/100 System Corruption 3% Temperature Cool (56) Movement Hovering (56) Location -8/Materials Parts ------- > --- POWER (3) -------- (None) > --- PROPULSION (3) --- Improved Hover Unit Improved Hover Unit > --- UTILITY (3) ------ Improved Terrain Scanner Terrain Scan Processor > --- WEAPON (2) ------- Light Cannon > --- INVENTORY (5) ---- Improved Ion Engine Improved Hover Unit Improved Heat Sink Ion Cannon Scrap Shield Fragment (38) Peak State ------------ > --- POWER ------------ (None) > --- PROPULSION ------- Improved Hover Unit Improved Hover Unit Improved Hover Unit > --- UTILITY ---------- Improved Heat Sink Improved Terrain Scanner Terrain Scan Processor > --- WEAPON ----------- High-powered Shotgun Light Cannon > --- INVENTORY -------- Improved Hover Unit Improved Heat Sink Ion Cannon Scrap Shield Fragment [Rating: 19] Favorites ----------- Power Ion Engine Engine Ion Engine Power Core Light Nuclear Core Propulsion Wheel Leg Aluminum Leg Wheel Wheel Hover Unit Improved Hover Unit Utility Improved Terrain Scanner Device Improved Terrain Scanner Storage Small Storage Unit Processor Terrain Scan Processor Protection Makeshift Thermal Plating Weapon Mining Laser Energy Gun EM Pulse Gun Ballistic Gun Subdweller Machine Gun Ballistic Cannon Slug Cannon Special Weapon Mining Laser Piercing Weapon Makeshift Spear Build | -11 -10 -10 -8 ------- Run | Yrd Mat Sub Mat Slots Evolved 4 | . . . 4 Power 2 | . . . 2 Propulsion 1 | . . . 1 Utility 1 | . . . 1 Weapon . | . . . . Parts Attached 34 | 14 2 6 12 Power 5 | 2 1 1 1 Engine 4 | 2 1 1 . Core 1 | . . . 1 Reactor . | . . . . Propulsion 9 | 3 . 1 5 Treads . | . . . . Leg 1 | . . . 1 Wheel 5 | 3 . 1 1 Hover 3 | . . . 3 Flight . | . . . . Utility 10 | 4 1 1 4 Device 6 | 3 1 . 2 Storage 1 | 1 . . . Processor 1 | . . . 1 Hackware . | . . . . Protection 2 | . . 1 1 Artifact . | . . . . Weapon 10 | 5 . 3 2 Energy Gun 2 | 2 . . . Energy Cannon . | . . . . Ballistic Gun 2 | . . 1 1 Ballistic Cannon 2 | . . 1 1 Launcher . | . . . . Special Weapon 3 | 3 . . . Impact Weapon . | . . . . Slashing Weapon . | . . . . Piercing Weapon 1 | . . 1 . Special Melee Weapon . | . . . . Unidentified Prototypes . | . . . . Corrupted Parts 1 | 1 . . . System Corruption 1 | 1 . . . Parts Lost 19 | 5 . 3 11 Power 3 | 1 . . 2 Propulsion 5 | . . 2 3 Utility 5 | 2 . . 3 Weapon 6 | 2 . 1 3 Highest Loss Streak 5 | 5 . 2 5 To Critical Strikes 1 | . . 1 . Average Backups 4 | 4 2 2 1 Power . | . . . . Propulsion 1 | 1 1 . . Utility . | . . 1 . Weapon 2 | 2 1 . . Tool/Special . | . . . . Unused Backups 9 | 5 . 1 3 Power 2 | 1 . . 1 Propulsion 4 | 3 . . 1 Utility 1 | . . 1 . Weapon 2 | 1 . . 1 Tool/Special . | . . . . Average Slot Usage (%) 69 | . 79 82 46 Engine 8 | . 5 12 . Leg 1 | . . . 4 Wheel 14 | . 28 18 1 Hover 1 | . . . 3 Device 21 | . 22 25 13 Processor 2 | . . . 7 Protection 2 | . . 2 3 Energy Gun 4 | . 9 5 . Ballistic Gun 3 | . . 2 5 Ballistic Cannon 6 | . . 9 3 Special Weapon 2 | . 14 1 . Piercing Weapon 2 | . . 2 3 Peak Build Rating 19 | 9 9 17 19 Average Rating 8 | 8 7 11 12 On Entrance 6 | . 3 9 13 Avg Prop Armor Cover (%) . | . . . . Naked Turns . | . . . . Heaviest Build 22 | 13 8 19 22 Greatest Support 26 | 26 20 20 24 Greatest Overweight (x) 4 | 1 . 1 4 Average Overweight (x) . | . . . . Largest Inventory Capacity 8 | 8 5 5 5 Average Capacity 5 | 5 5 5 5 Most Carried 8 | 8 5 5 5 Average Carried 4 | 4 2 3 2 Final Capacity 5 | 5 5 5 5 Final Carried 5 | 4 2 2 5 Class Distribution -------------------- 96% | Mutant 3% | Scavenger-Mutant Dominant Class ---------------- Mutant | -10/Materials Mutant | -10/Subcaves Mutant | -8/Materials Resources | -11 -10 -10 -8 ----------- Run | Yrd Mat Sub Mat Matter Collected 964 | 527 15 179 243 Remotely . | . . . . Salvage Created 996 | 415 15 206 360 Parts 67 | 34 6 9 18 Haulers Intercepted . | . . . . Recyclers Shooed . | . . . . Parts Field Recycled . | . . . . Retrieved Matter . | . . . . Parts Self-Destructed 7 | . . 7 . Prevented . | . . . . Parts Restored . | . . . . Kills | -11 -10 -10 -8 ------- Run | Yrd Mat Sub Mat Combat Hostiles Destroyed 14 | . . 6 8 Melee 2 | . . . 2 Guns 6 | . . 2 4 Cannons 2 | . . 1 1 AOE 4 | . . 3 1 Classes Destroyed 9 | 3 1 2 3 Worker 5 | 4 . . 1 Builder 1 | . 1 . . Tunneler 9 | 9 . . . Recycler 1 | 1 . . . Swarmer 1 | . . 1 . Grunt 6 | . . . 6 Duelist 1 | . . . 1 Sentry 1 | . . . 1 Subdweller 5 | . . 5 . Best Kill Streak 5 | 2 1 5 3 Combat Bots Only 5 | . . 5 3 Max Kills in Single Turn 3 | 1 1 3 1 Gunslinging . | . . . . Exploded 3 | . . 3 1 Melee 1 | . . . 1 Uniques/NPCs Destroyed . | . . . . Combat | -11 -10 -10 -8 -------- Run | Yrd Mat Sub Mat Hostile Shots Fired 172 | . . 47 125 Missed 49 | . . 17 32 Hits 123 | . . 30 93 Melee 4 | . . . 4 Projectile 119 | . . 30 89 Critical Strikes 9 | . . 2 7 Damage Taken 2500 | 428 . 522 1550 Core 804 | 112 . 135 557 Absorbed by Shields . | . . . . Ignored by Resistances 34 | . . 12 22 Core Remaining (%) 28 | 55 . 1 . Volleys Fired 171 | 89 6 49 27 Largest 2 | 2 1 2 2 Hottest 200 | 200 100 80 55 Shots Fired 253 | 145 6 64 38 Gun 136 | 64 4 41 27 Cannon 34 | . . 23 11 Launcher . | . . . . Special 83 | 81 2 . . Kinetic 79 | . . 41 38 Thermal 83 | 81 2 . . Explosive . | . . . . Electromagnetic 91 | 64 4 23 . Robot Hit Streak 18 | 6 3 18 5 Robot Miss Streak 5 | 3 . 3 5 Penetration Max . | . . . . Secondary Targets . | . . . . Shots Hit Robots 99 | 37 2 23 37 Core Hits 43 | 15 1 10 17 Critical Kills 1 | . . . 1 Critical Parts Destroyed 2 | . . . 2 Critical Strikes 5 | 1 . . 4 Destroy 3 | . . . 3 Corrupt 1 | 1 . . . Impale 1 | . . . 1 Melee Attacks 18 | . . . 18 Impact . | . . . . Slashing . | . . . . Piercing 18 | . . . 18 Sneak Attacks 1 | . . . 1 Combat Hostiles . | . . . . Follow-up Attacks . | . . . . Damage Inflicted 2031 | 562 37 593 839 Guns 1145 | 480 37 241 387 Cannons 253 | . . 130 123 Explosions 280 | 58 . 222 . Melee 318 | . . . 318 Ramming 11 | . . . 11 Kinetic 749 | . . 239 510 Thermal 304 | 82 . 222 . Explosive . | . . . . Electromagnetic 649 | 480 37 132 . Impact . | . . . . Slashing . | . . . . Piercing 318 | . . . 318 Highest Corruption 14 | 14 14 14 3 Average Corruption 2 | 1 14 14 2 Corruption Purged . | . . . . Corruption Blocked . | . . . . Effects 93 | 49 5 33 6 Message Errors 23 | 11 3 8 1 Matter Fused 20 | 12 1 5 2 Heat Flow Errors 12 | 9 1 2 . Energy Discharges 16 | 10 . 6 . Parts Rejected 1 | . . 1 . Parts Fused 1 | 1 . . . Data Loss (minor) 10 | 2 . 5 3 Data Loss (major) 7 | 4 . 3 . Misfires 1 | . . 1 . Misdirections 1 | . . 1 . Weapon Failures 1 | . . 1 . Overload Shots . | . . . . Overflow Damage 18 | 18 . . . Projectiles . | . . . . Explosions 18 | 18 . . . Melee . | . . . . Knockbacks 2 | . . 1 1 Impact . | . . . . Kinetic 2 | . . 1 1 Secondary . | . . . . Self-Inflicted Damage 19 | 16 . . 3 Shots 1 | 1 . . . Rammed 2 | . . . 2 Targets Rammed 7 | . . . 7 Kicked 5 | . . . 5 Crushed . | . . . . Highest Temperature 296 | 296 203 170 22 Average Temperature 87 | 90 96 80 11 Received Heat Transfer 1008 | . . 153 855 Effects 3 | 3 . . . Interference 3 | 3 . . . Siege Activations . | . . . . Martial Activations . | . . . . Shielding Activations . | . . . . Robots Disrupted . | . . . . Combat Hostiles . | . . . . Robots Corrupted . | . . . . Combat Hostiles . | . . . . Parts Fried 2 | 2 . . . Impact Corruptions . | . . . . Robots Melted . | . . . . Combat Hostiles . | . . . . Parts Melted . | . . . . Heat Transferred 400 | 150 . 250 . Parts Sabotaged . | . . . . Parts Stolen . | . . . . Parts Stripped . | . . . . Power Chain Reactions 2 | 1 . 1 . Alert | -11 -10 -10 -8 ------- Run | Yrd Mat Sub Mat Maximum Alert Level . | . . . . Low Security (%) 100 | 100 100 . 100 Level 1 . | . . . . Level 2 . | . . . . Level 3 . | . . . . Level 4 . | . . . . Level 5 . | . . . . High Security . | . . . . Max Security . | . . . . Peak Influence 81 | 10 5 . 81 Initial . | . . . . Average 1 | . . . 21 Influence Increases 425 | 70 7 110 238 Destroy 0b10 Robot/C 180 | . . 20 160 Destroy 0b10 Robot/NC 80 | 70 5 . 5 Destroy Leader 40 | . . . 40 Disable Machine 30 | . . . 30 Destroy Structure 5 | . 2 . 3 Lose Combat Pursuer 90 | . . 90 . Influence Decreases 388 | 70 7 110 201 Time Decay 286 | 70 7 90 119 Lost Part 102 | . . 20 82 Squads Dispatched 2 | . 1 . 1 Investigation 1 | . . . 1 Extermination . | . . . . Reinforcement 1 | . 1 . . Assault . | . . . . Garrison . | . . . . Intercept . | . . . . Searches Triggered . | . . . . Construction Impeded . | . . . . Haulers Reinforced . | . . . . Active Scanning Responses . | . . . . Cargo Convoy Interrupts . | . . . . Stealth | -11 -10 -10 -8 --------- Run | Yrd Mat Sub Mat Distress Signals . | . . . . Communications Jammed . | . . . . Distress Signals . | . . . . Times Spotted 38 | . 1 20 17 Peak Tracking Total 6 | . 2 6 5 Tactical Retreats 2 | . . 2 . Traps | -11 -10 -10 -8 ------- Run | Yrd Mat Sub Mat Traps Triggered 3 | . . 2 1 Indirectly . | . . . . Trap Hack Attempts . | . . . . Triggered . | . . . . Disarmed . | . . . . Reprogrammed . | . . . . Reused . | . . . . Traps Extracted . | . . . . Installed . | . . . . Triggered . | . . . . Machines | -11 -10 -10 -8 ---------- Run | Yrd Mat Sub Mat Machines Disabled 2 | . . . 2 Max in Single Turn 1 | . . . 1 Machines Repaired . | . . . . Machines Dismantled . | . . . . Machines Sabotaged . | . . . . Overloaded Fab Kills . | . . . . Hacking | -11 -10 -10 -8 --------- Run | Yrd Mat Sub Mat Machines Accessed 2 | . . . 2 Terminals 1 | . . . 1 Fabricators . | . . . . Repair Stations . | . . . . Recycling Units . | . . . . Scanalyzers 1 | . . . 1 Garrison Access . | . . . . Total Hacks 6 | . . . 6 Successful 4 | . . . 4 Failed 2 | . . . 2 Catastrophic . | . . . . Database Lockouts . | . . . . Manual . | . . . . Terminals 4 | . . . 4 Fabricators . | . . . . Repair Stations . | . . . . Recycling Units . | . . . . Scanalyzers 2 | . . . 2 Garrison Access . | . . . . Terminal Hacks 2 | . . . 2 Locate Traps 1 | . . . 1 Maintenance Status 1 | . . . 1 Fabricator Hacks . | . . . . Repair Station Hacks . | . . . . Recycling Unit Hacks . | . . . . Scanalyzer 2 | . . . 2 Insert Component 1 | . . . 1 Retrieve Study 1 | . . . 1 Garrison Access Hacks . | . . . . Unauthorized Hacks . | . . . . Terminals . | . . . . Fabricators . | . . . . Repair Stations . | . . . . Recycling Units . | . . . . Scanalyzers . | . . . . Garrison Access . | . . . . Data Cores Recovered . | . . . . Used . | . . . . Hacking Detections 2 | . . . 2 Full Trace Events 1 | . . . 1 Feedback Events 1 | . . . 1 Corruption 1 | . . . 1 Feedback Blocked . | . . . . Robot Schematics Acquired . | . . . . Robots Built . | . . . . Authchips . | . . . . Time . | . . . . Total Robot Build Rating . | . . . . Part Schematics Acquired . | . . . . Parts Built . | . . . . Authchips . | . . . . Time . | . . . . Total Part Build Rating . | . . . . Part Studies Acquired 1 | . . . 1 Parts Repaired . | . . . . Time . | . . . . Parts Recycled . | . . . . Recycled Matter . | . . . . Retrieved Matter . | . . . . Retrieved Components . | . . . . Parts Scanalyzed . | . . . . Part Schematics Acquired . | . . . . Parts Damaged . | . . . . Bothacking | -11 -10 -10 -8 ------------ Run | Yrd Mat Sub Mat Used RIF Installer . | . . . . Robots Hacked . | . . . . Non-combat . | . . . . Combat . | . . . . Robot Hacks Applied . | . . . . Relay Couplers Released . | . . . . Fabnet Peak Effective % . | . . . . Robots Rewired . | . . . . Allies Hacked . | . . . . Hacks Repelled . | . . . . Allies | -11 -10 -10 -8 -------- Run | Yrd Mat Sub Mat Total Allies . | . . . . Largest Group . | . . . . Highest-Rated Group . | . . . . Highest-Rated Ally . | . . . . Total Orders . | . . . . Ally Attacks . | . . . . Total Damage . | . . . . Kills . | . . . . Allies Corrupted . | . . . . Allies Melted . | . . . . Intel | -11 -10 -10 -8 ------- Run | Yrd Mat Sub Mat Active Infowar (turns) 8289 | 7140 110 673 366 Terrain 7556 | 6569 109 559 319 Seismic 7970 | 7140 110 673 47 Robot Analysis Total . | . . . . Derelict Logs Recovered . | . . . . Drone Launches . | . . . . Drone Recoveries . | . . . . Exploration | -11 -10 -10 -8 ------------- Run | Yrd Mat Sub Mat Turns Passed 9390 | 8173 134 673 410 Spaces Moved 1961 | 1181 47 489 244 Core 41 | 5 . . 36 Treads . | . . . . Legs 130 | . . . 130 Wheels 1749 | 1176 47 489 37 Hover 41 | . . . 41 Flight . | . . . . Fastest Speed 50 | 50 80 80 50 Average Speed 87 | 81 80 90 108 Slowest Speed 250 | 95 80 95 250 Overloaded Moves . | . . . . Propulsion Burnouts . | . . . . Robots Hopped . | . . . . Potential Cave-ins 5 | 5 . . . Cave-ins Triggered 2 | 2 . . . Exploration Rate (%) 32 | 63 7 41 18 Regions Visited 3 Branch Regions 1 Pre-discovered Areas . | . . . . Known Exits Taken . | . . . . Unknown Exits Taken 3 | 1 1 1 . Scrap Searched 3 | . . 3 . Spaces Dug 48 | 40 2 5 1 Terrain Destroyed 68 | 49 2 14 3 Melee . | . . . . Projectile 61 | 47 2 9 3 AOE 7 | 2 . 5 . Terrain Rammed . | . . . . Walls Destroyed . | . . . . Machines Disabled . | . . . . Actions | -11 -10 -10 -8 --------- Run | Yrd Mat Sub Mat Total 9197 | 8080 133 652 332 Wait 6931 | 6756 75 97 3 Move 1958 | 1180 46 488 244 Hop . | . . . . Pick Up 46 | 21 2 6 17 Fast Attach 1 | . . 1 . Attach 33 | 12 4 3 14 Detach 2 | 2 . . . Swap 19 | 14 . 4 1 Drop 11 | 6 . 4 1 Fire 171 | 89 6 49 27 Melee 18 | . . . 18 Ram 2 | . . . 2 Kick 5 | . . . 5 Crush . | . . . . Escape Stasis . | . . . . Rewire . | . . . . Trap . | . . . . Miscellaneous . | . . . . Route ------- -11/Scrapyard -10/Materials -10/Subcaves (discovered 3 exits: *Mat x2 / [*Rec]) -8/Materials History --------- Turn | Location | Event 13 | -11/Scrapyard | Discovered new exit (range 16) 8128 | -11/Scrapyard | Crushed by falling debris 8128 | -11/Scrapyard | System corruption reached 10% 8136 | -11/Scrapyard | Crushed by falling debris 8159 | -11/Scrapyard | Lost 5 parts (1p2u2w) 8174 | -11/Scrapyard | Entered Materials 8175 | -10/Materials | Build established: Mutant 8237 | -10/Materials | Discovered new exit (range 6) 8308 | -10/Materials | Entered Subcaves 8335 | -10/Subcaves | Ambushed by swarm of Subdwellers 8359 | -10/Subcaves | Discovered new exit (range 9) 8421 | -10/Subcaves | Ambushed by Subdweller buried in earth 8538 | -10/Subcaves | Core integrity fell below 50% 8538 | -10/Subcaves | Discovered new exit (range 11) 8813 | -10/Subcaves | Core integrity fell below 20% 8855 | -10/Subcaves | Shifting Twisted Machinery released Mak. Spear 8857 | -10/Subcaves | Shifting Twisted Machinery released Unknown Ballistic Gun 8865 | -10/Subcaves | Discovered new exit (range 12) 8886 | -10/Subcaves | Ambushed by Subdwellers from Twisted Machinery 8981 | -10/Subcaves | Entered Materials 8981 | -8/Materials | Evolved 4 slots: Power x2, Propulsion x1, Utility x1 9059 | -8/Materials | Lost 3 parts (1p1n1u) 9116 | -8/Materials | Core integrity fell below 50% 9177 | -8/Materials | Lost 5 parts (1p1n1u2w) 9377 | -8/Materials | Core integrity fell below 20% 9391 | -8/Materials | Destroyed by G-47 Trooper with Particle Gun Last Messages --------------- Effective improvements: +1 support >>Insert(Imp. Ion Engine) Scanning Imp. Ion Engine... Ready to analyze. 09377_ K-01 Serf collects debris. 09377_ G-47 Trooper suffers critical hit (Destroy). 09377_ Destroyed Aluminum Leg. 09377_ G-47 Trooper destroyed. 09380_ K-01 Serf collects debris. 09380_ Terminal disabled. 09383_ K-01 Serf collects debris. 09384_ Imp. Heat Sink destroyed. 09385_ Imp. Hover Unit+ destroyed. 09387_ K-01 Serf collects debris. 09389_ G-50 Soldier destroyed. 09389_ Hpw. Shotgun destroyed. 09390_ K-01 Serf collects debris. 09391_ Critical hit (Burn: +37). Map ----- +----------------------------------------------------+ | ?#? ???? ?? ? #?#????????#??##?##?##????## | | ?? ??????? ? ?#?#?#?#?##?#??####?###??#?# | | ?????"????"? ?###??######?##??#?#?##?#?#? | | ?? ??""???? ??????? #?##????######### | | #?? ?? ? ??#? #?##?#???# | | #????###+######## ##?#?????# | | #??### # ##?#???#?# | | ?????# + #?#?#?#### | | ?#?#####+##### # ##?#??# + | | #??# ## # ! ! ##?#### ## | | ???#== " ## # ? ###?#?# ## | | #??# = "G" + # ???? #?????# ## | | #?##== " " ## ################ ######+#+ | | ?#?# ## | | ?#?#! """" ## | | ?### """" ## | | ?## ="""" [## ########################## | | ?### ## #?####?#?##?#####???#?#### | | ??#######+#### ###########?##?##?#???#?## | | #??#?#??# #??# ## #???##????#???## | | ###???#?# #??# ## "S ##???#?#???????# | | ???#?#?## #??# ## """ #?##?#???????### | | ?#??????# #?## ## "" #???????##?#?##? | | ?????? ## ###u ! # ##???#??#?##??#? | | # ?????# g g%[# """#??#??????#???## | | #???" + g @k """#??#??#????#???# | | ???????# ### % # """#??????##??????? | | ???????# #?###### #????????????#?# | | ?????? / #?#????##########????#??????#??? | | ????? # ????"?????????????????????????? | | ????" # #??????????????????????????????? | | ??? ?####??????????????????????????????? | | ??"""????????????????????????????????????? | | ??"""????????????????????????????????????? | | ?????????????????????????????????????????? | | ?????????????????????????????????????????? | | ?????????????????????????????????????????? | | ?????????????????????????????????????????? | | ?????????????????????????????????????????? | | ?????????????????????????????????????????? | | ?????????????????????????????????????????? | | ?????????????????????????????????????????? | | ?????????????????????????????????????????? | | ?????????????????????????????????????????? | | ?????????????????????????????????????????? | | ?????????????????????????????????????????? | | ?????????????????????????????????????????? | | ?????????????????????????????????????????? | | ?????????????????????????????????????????? | | ?????????????????????????????????????????? | +----------------------------------------------------+ Best States ------------- Heat Dissipation 45 Energy Generation 15 Energy Capacity 250 Matter Stores 300 Matter Capacity 300 Sight Range 16 Terrain Scan Range 16 Terrain Scan Density 85 Armor Coverage 325 Resistance: TH 10 Evasion (%) 55 Item Schematics ----------------- None Robot Schematics ------------------ None Fabricated ------------ Nothing Repaired ---------- Nothing Studied --------- Imp. Hover Unit | -8/Materials | Hacked Alien Tech Used ----------------- None Achievements -------------- A Problem For Future Me Close Call Do Not Disturb Item+ Organ Harvest Challenges ------------ None Game ------ Seed FlakRiotTurretformer Manual? 0 Play Time 00:42:01 Cumulative 8.0 hours Start 2025.10.28 @ 09:34:07 End 2025.10.28 @ 10:16:53 Sessions 1 Manual Loads 0 Difficulty Rogue Special Mode None Game No. 19 Rogue 19 Adventurer 0 Explorer 0 Win Type - Total 0 Types 0/0/0/0/0/0/0/0/0/0 Lore% 8 Gallery% 11 Achievement% 9 Wizard Run 0 Options --------- Layout 1 ASCII 0 Keyboard 0 Movement Mouse Keybinds 0 Fullscreen 1 Font 24/Smallcaps Map View 50x35 Zoom Use 1% Tactical HUD 1 Map Filters NONE Filters NONE Steam 1 RUN: fc392b36-3ec6-42ba-bc64-7a0baa58d847